[Event "*** Titled Tuesday Blitz"]
[Site "Chess.com"]
[Date "2020.11.03"]
[Round "3"]
[White "kai_nov"]
[Black "Susal_De_Silva"]
[Result "0-1"]
[WhiteElo "2283"]
[BlackElo "2521"]
[TimeControl "180+1"]
[EndTime "10:30:31 PST"]
[Termination "Susal_De_Silva won on time"]

1. d4 {[%clk 0:02:58.4]} 1... Nf6 {[%clk 0:02:59.7]} 2. c4 {[%clk 0:02:57.5]}
2... e6 {[%clk 0:03:00.1]} 3. Nc3 {[%clk 0:02:56.9]} 3... Bb4 {[%clk 0:03:00.2]}
4. f3 {[%clk 0:02:55.9]} 4... c5 {[%clk 0:02:59.8]} 5. d5 {[%clk 0:02:55.3]}
5... O-O {[%clk 0:03:00]} 6. e4 {[%clk 0:02:54.2]} 6... b5 {[%clk 0:03:00.2]} 7.
e5 {[%clk 0:02:51.7]} 7... exd5 {[%clk 0:02:59.4]} 8. exf6 {[%clk 0:02:33]} 8...
d4 {[%clk 0:02:58.2]} 9. a3 {[%clk 0:02:30.7]} 9... Ba5 {[%clk 0:02:57.2]} 10.
b4 {[%clk 0:02:29.3]} 10... dxc3 {[%clk 0:02:57.3]} 11. bxa5 {[%clk 0:02:26.6]}
11... Re8+ {[%clk 0:02:57.9]} 12. Kf2 {[%clk 0:02:16.9]} 12... Qxf6 {[%clk
0:02:56.7]} 13. Qd5 {[%clk 0:02:12.8]} 13... Nc6 {[%clk 0:02:36.5]} 14. Bg5
{[%clk 0:01:58]} 14... Qg6 {[%clk 0:02:21.9]} 15. Bd3 {[%clk 0:01:52.7]} 15...
Qe6 {[%clk 0:01:52.5]} 16. Qxe6 {[%clk 0:01:24.2]} 16... fxe6 {[%clk 0:01:53.4]}
17. cxb5 {[%clk 0:01:22.9]} 17... Nxa5 {[%clk 0:01:53.4]} 18. Ne2 {[%clk
0:01:18.8]} 18... d5 {[%clk 0:01:53.3]} 19. Nxc3 {[%clk 0:01:17.3]} 19... c4
{[%clk 0:01:51.4]} 20. Bc2 {[%clk 0:01:13.5]} 20... d4 {[%clk 0:01:46.4]} 21.
Be4 {[%clk 0:01:10]} 21... Rb8 {[%clk 0:01:41.4]} 22. Ne2 {[%clk 0:01:06.7]}
22... e5 {[%clk 0:01:33.5]} 23. Rab1 {[%clk 0:00:50.2]} 23... Be6 {[%clk
0:01:32.6]} 24. f4 {[%clk 0:00:44.8]} 24... h6 {[%clk 0:01:29]} 25. f5 {[%clk
0:00:21.7]} 25... Rf8 {[%clk 0:01:22.8]} 26. Be7 {[%clk 0:00:19.1]} 26... Rf7
{[%clk 0:01:18.6]} 27. Bd6 {[%clk 0:00:17.8]} 27... Bxf5 {[%clk 0:01:15.1]} 28.
Bd5 {[%clk 0:00:12]} 28... Be6+ {[%clk 0:01:14.6]} 29. Kg3 {[%clk 0:00:11.5]}
29... Re8 {[%clk 0:01:09.3]} 30. Bxe6 {[%clk 0:00:10.4]} 30... Rxe6 {[%clk
0:01:10.2]} 31. Bb4 {[%clk 0:00:10.5]} 31... Rg6+ {[%clk 0:01:09.9]} 32. Kh3
{[%clk 0:00:10.2]} 32... Nb3 {[%clk 0:01:04.5]} 33. Ng3 {[%clk 0:00:10.1]} 33...
d3 {[%clk 0:00:58.2]} 34. Rhf1 {[%clk 0:00:09.7]} 34... Rgf6 {[%clk 0:00:54]}
35. Rxf6 {[%clk 0:00:08.5]} 35... Rxf6 {[%clk 0:00:54.9]} 36. Ne4 {[%clk
0:00:08.2]} 36... Rf4 {[%clk 0:00:53.5]} 37. Nd6 {[%clk 0:00:06.3]} 37... d2
{[%clk 0:00:47.6]} 38. Rd1 {[%clk 0:00:03.3]} 38... Rd4 {[%clk 0:00:47]} 39. Nf5
{[%clk 0:00:02.5]} 39... Rd3+ {[%clk 0:00:45.9]} 40. Kg4 {[%clk 0:00:02]} 40...
c3 {[%clk 0:00:44.2]} 0-1

[Event "*** Titled Tuesday Blitz"]
[Site "Chess.com"]
[Date "2020.11.03"]
[Round "3"]
[White "mishanick"]
[Black "Mazetovic"]
[Result "1-0"]
[WhiteElo "3023"]
[BlackElo "2751"]
[TimeControl "180+1"]
[EndTime "10:30:34 PST"]
[Termination "mishanick won by resignation"]

1. d4 {[%clk 0:03:00.9]} 1... Nf6 {[%clk 0:02:58.2]} 2. c4 {[%clk 0:03:00.9]}
2... g6 {[%clk 0:02:58.2]} 3. Nc3 {[%clk 0:03:00.2]} 3... Bg7 {[%clk 0:02:58.6]}
4. e4 {[%clk 0:03:00.3]} 4... d6 {[%clk 0:02:59]} 5. Be2 {[%clk 0:03:00.6]} 5...
Na6 {[%clk 0:02:57.1]} 6. Be3 {[%clk 0:03:00.3]} 6... O-O {[%clk 0:02:54.1]} 7.
Nf3 {[%clk 0:03:00]} 7... e5 {[%clk 0:02:52.5]} 8. d5 {[%clk 0:02:59.2]} 8...
Ng4 {[%clk 0:02:47.7]} 9. Bg5 {[%clk 0:02:58.2]} 9... f6 {[%clk 0:02:45.9]} 10.
Bh4 {[%clk 0:02:54.9]} 10... c5 {[%clk 0:02:43.4]} 11. Nd2 {[%clk 0:02:51]}
11... Nh6 {[%clk 0:02:39.3]} 12. f3 {[%clk 0:02:44.1]} 12... Nf7 {[%clk
0:02:38.9]} 13. a3 {[%clk 0:02:42.7]} 13... h5 {[%clk 0:02:35.4]} 14. Rb1 {[%clk
0:02:40.3]} 14... Bh6 {[%clk 0:02:35.3]} 15. Bf2 {[%clk 0:02:35.2]} 15... b6
{[%clk 0:02:34.2]} 16. b4 {[%clk 0:02:35.6]} 16... Bd7 {[%clk 0:02:33.6]} 17.
Nb5 {[%clk 0:02:33.4]} 17... f5 {[%clk 0:02:26]} 18. Bd3 {[%clk 0:02:32]} 18...
Bxd2+ {[%clk 0:02:05]} 19. Qxd2 {[%clk 0:02:30.8]} 19... f4 {[%clk 0:02:05.5]}
20. h4 {[%clk 0:02:28.2]} 20... Kh7 {[%clk 0:02:04.9]} 21. g3 {[%clk 0:02:22.7]}
21... Qf6 {[%clk 0:01:48.9]} 22. Be2 {[%clk 0:02:10]} 22... Kg7 {[%clk
0:01:38.5]} 23. Rg1 {[%clk 0:02:08.3]} 23... Kh7 {[%clk 0:01:30.3]} 24. Kd1
{[%clk 0:02:06.6]} 24... Nh6 {[%clk 0:00:52.7]} 25. Qc3 {[%clk 0:01:46.5]} 25...
Qe7 {[%clk 0:00:45.2]} 26. Kd2 {[%clk 0:01:33.2]} 26... Nf7 {[%clk 0:00:45.4]}
27. Qc2 {[%clk 0:01:28.3]} 27... Qf6 {[%clk 0:00:44.9]} 28. Ke1 {[%clk
0:01:24.6]} 28... Rg8 {[%clk 0:00:44.8]} 29. Qd2 {[%clk 0:01:22.1]} 29... Rg7
{[%clk 0:00:43.3]} 30. Kd1 {[%clk 0:01:18.4]} 30... Rgg8 {[%clk 0:00:42.9]} 31.
Kc2 {[%clk 0:01:18.6]} 31... Rg7 {[%clk 0:00:43.2]} 32. Kb3 {[%clk 0:01:18.6]}
32... Rgg8 {[%clk 0:00:43]} 33. Rg2 {[%clk 0:01:18]} 33... Rg7 {[%clk
0:00:43.2]} 34. Rbg1 {[%clk 0:01:17.8]} 34... Rgg8 {[%clk 0:00:43.6]} 35. Rb1
{[%clk 0:01:16.4]} 35... Rg7 {[%clk 0:00:43.4]} 36. Qc3 {[%clk 0:01:16.5]} 36...
Qe7 {[%clk 0:00:41.5]} 37. Rbg1 {[%clk 0:01:16]} 37... Rgg8 {[%clk 0:00:40.6]}
38. Be1 {[%clk 0:01:13.8]} 38... Nh8 {[%clk 0:00:25.6]} 39. Bd2 {[%clk
0:01:05.1]} 39... Rgf8 {[%clk 0:00:24.6]} 40. gxf4 {[%clk 0:01:03.4]} 40... exf4
{[%clk 0:00:24.5]} 41. Rg5 {[%clk 0:01:02.9]} 41... Bxb5 {[%clk 0:00:21.4]} 42.
cxb5 {[%clk 0:01:02.8]} 42... Nc7 {[%clk 0:00:22.1]} 43. Bd3 {[%clk 0:00:58.8]}
43... Nf7 {[%clk 0:00:20.2]} 44. Rxg6 {[%clk 0:00:58.1]} 44... Ne5 {[%clk
0:00:20]} 45. R6g5 {[%clk 0:00:58.7]} 45... Kh6 {[%clk 0:00:17.4]} 46. Be2
{[%clk 0:00:57.2]} 46... Rf6 {[%clk 0:00:16.9]} 47. Qc1 {[%clk 0:00:53.2]} 47...
Qf7 {[%clk 0:00:16.1]} 48. Bxf4 {[%clk 0:00:49.1]} 48... Rxf4 {[%clk 0:00:15.3]}
49. Rf5 {[%clk 0:00:49.7]} 49... Ng6 {[%clk 0:00:11.1]} 50. Rxf7 {[%clk
0:00:47.8]} 1-0

[Event "*** Titled Tuesday Blitz"]
[Site "Chess.com"]
[Date "2020.11.03"]
[Round "3"]
[White "tsaruk_maks"]
[Black "1stSecond"]
[Result "0-1"]
[WhiteElo "2567"]
[BlackElo "2767"]
[TimeControl "180+1"]
[EndTime "10:30:34 PST"]
[Termination "1stSecond won on time"]

1. e4 {[%clk 0:03:00.9]} 1... c5 {[%clk 0:02:59.7]} 2. Nf3 {[%clk 0:03:01.3]}
2... a6 {[%clk 0:02:57.2]} 3. c4 {[%clk 0:03:00.2]} 3... Nc6 {[%clk 0:02:52.8]}
4. d4 {[%clk 0:02:59.4]} 4... cxd4 {[%clk 0:02:53.2]} 5. Nxd4 {[%clk 0:03:00.3]}
5... e6 {[%clk 0:02:49.7]} 6. Nc3 {[%clk 0:02:59.4]} 6... Nf6 {[%clk 0:02:47.3]}
7. a3 {[%clk 0:02:58.4]} 7... d5 {[%clk 0:02:37.3]} 8. exd5 {[%clk 0:02:30.2]}
8... exd5 {[%clk 0:02:35.2]} 9. Nxc6 {[%clk 0:02:29]} 9... bxc6 {[%clk
0:02:34.6]} 10. Be2 {[%clk 0:02:29.9]} 10... Be6 {[%clk 0:02:33.3]} 11. O-O
{[%clk 0:02:27.3]} 11... Be7 {[%clk 0:02:30.3]} 12. cxd5 {[%clk 0:02:15.7]}
12... cxd5 {[%clk 0:02:27.6]} 13. Be3 {[%clk 0:02:15.4]} 13... O-O {[%clk
0:02:20.9]} 14. Bd4 {[%clk 0:02:14.5]} 14... Qb8 {[%clk 0:02:20.7]} 15. b4
{[%clk 0:02:10.1]} 15... Rd8 {[%clk 0:02:03.4]} 16. Bf3 {[%clk 0:01:59.7]} 16...
Qb7 {[%clk 0:01:47.2]} 17. Qd3 {[%clk 0:01:57.4]} 17... a5 {[%clk 0:01:39.2]}
18. b5 {[%clk 0:01:56.9]} 18... a4 {[%clk 0:01:35.5]} 19. Rfb1 {[%clk
0:01:44.7]} 19... Nd7 {[%clk 0:01:34.3]} 20. Qe3 {[%clk 0:01:32.6]} 20... Bf8
{[%clk 0:01:16.6]} 21. Bd1 {[%clk 0:01:27.8]} 21... Bf5 {[%clk 0:01:08.4]} 22.
Rb2 {[%clk 0:01:26.7]} 22... Re8 {[%clk 0:01:08.2]} 23. Qd2 {[%clk 0:01:17.1]}
23... Nc5 {[%clk 0:00:59.7]} 24. Bxc5 {[%clk 0:00:59.2]} 24... Bxc5 {[%clk
0:01:00.6]} 25. Nxa4 {[%clk 0:00:59.4]} 25... Bd6 {[%clk 0:00:59.6]} 26. Nc3
{[%clk 0:00:49.5]} 26... d4 {[%clk 0:00:54]} 27. Ne2 {[%clk 0:00:31.2]} 27... d3
{[%clk 0:00:51.7]} 28. Ng3 {[%clk 0:00:30.8]} 28... Qe7 {[%clk 0:00:21.4]} 29.
Bf3 {[%clk 0:00:28.3]} 29... Rxa3 {[%clk 0:00:20.6]} 30. Rxa3 {[%clk 0:00:06.8]}
30... Bxa3 {[%clk 0:00:21.5]} 31. Ra2 {[%clk 0:00:03.5]} 31... Bb4 {[%clk
0:00:20.4]} 32. Qxb4 {[%clk 0:00:02.7]} 32... Qxb4 {[%clk 0:00:19.3]} 0-1

[Event "*** Titled Tuesday Blitz"]
[Site "Chess.com"]
[Date "2020.11.03"]
[Round "3"]
[White "BegmuratovKh2010"]
[Black "Sharpchess22"]
[Result "0-1"]
[WhiteElo "2457"]
[BlackElo "2832"]
[TimeControl "180+1"]
[EndTime "10:30:34 PST"]
[Termination "Sharpchess22 won by resignation"]

1. d4 {[%clk 0:03:00.9]} 1... Nf6 {[%clk 0:02:59.4]} 2. c4 {[%clk 0:03:00.3]}
2... e6 {[%clk 0:02:58.7]} 3. Nf3 {[%clk 0:02:59.7]} 3... d5 {[%clk 0:02:57.7]}
4. e3 {[%clk 0:02:58]} 4... b6 {[%clk 0:02:56.3]} 5. Nc3 {[%clk 0:02:56.9]} 5...
Bb7 {[%clk 0:02:55.8]} 6. Bd2 {[%clk 0:02:48.7]} 6... Bd6 {[%clk 0:02:55.2]} 7.
Bd3 {[%clk 0:02:46.3]} 7... a6 {[%clk 0:02:53.2]} 8. O-O {[%clk 0:02:45.3]} 8...
Nbd7 {[%clk 0:02:50.2]} 9. a3 {[%clk 0:02:40.2]} 9... O-O {[%clk 0:02:49.3]} 10.
Re1 {[%clk 0:02:37.8]} 10... dxc4 {[%clk 0:02:45.6]} 11. Bxc4 {[%clk 0:02:38.7]}
11... c5 {[%clk 0:02:45.5]} 12. Qe2 {[%clk 0:02:26.5]} 12... b5 {[%clk
0:02:44.3]} 13. Bd3 {[%clk 0:02:20.7]} 13... Qb6 {[%clk 0:02:43.8]} 14. dxc5
{[%clk 0:02:06.7]} 14... Nxc5 {[%clk 0:02:43]} 15. e4 {[%clk 0:01:52.1]} 15...
Nxd3 {[%clk 0:02:34.6]} 16. Qxd3 {[%clk 0:01:53]} 16... Ng4 {[%clk 0:02:34.7]}
17. Qe2 {[%clk 0:01:49.2]} 17... Bc5 {[%clk 0:02:32.4]} 18. Rf1 {[%clk
0:01:45.9]} 18... Rad8 {[%clk 0:02:26.3]} 19. b4 {[%clk 0:01:44.3]} 19... Be7
{[%clk 0:02:20.9]} 20. h3 {[%clk 0:01:41.9]} 20... Nf6 {[%clk 0:02:19.3]} 21. e5
{[%clk 0:01:28]} 21... Bxf3 {[%clk 0:02:15.3]} 22. gxf3 {[%clk 0:01:21.4]} 22...
Nd7 {[%clk 0:01:58.9]} 23. f4 {[%clk 0:01:14.1]} 23... Nb8 {[%clk 0:01:52.3]}
24. Be3 {[%clk 0:01:10.6]} 24... Qb7 {[%clk 0:01:51.8]} 25. f3 {[%clk
0:01:07.6]} 25... Nc6 {[%clk 0:01:46.6]} 26. Rfd1 {[%clk 0:01:03.7]} 26... Qc7
{[%clk 0:01:41.5]} 27. Ne4 {[%clk 0:01:01.5]} 27... a5 {[%clk 0:01:33.1]} 28.
Qxb5 {[%clk 0:00:37.5]} 28... axb4 {[%clk 0:01:32.9]} 29. axb4 {[%clk
0:00:32.4]} 29... Nxb4 {[%clk 0:01:30.5]} 30. Rxd8 {[%clk 0:00:28]} 30... Qxd8
{[%clk 0:01:29]} 31. Nd6 {[%clk 0:00:20.7]} 31... Nd5 {[%clk 0:01:25.5]} 32. Bc5
{[%clk 0:00:19.8]} 32... Nxf4 {[%clk 0:01:23.3]} 33. Bb6 {[%clk 0:00:13.5]}
33... Qb8 {[%clk 0:01:18.4]} 34. Qc6 {[%clk 0:00:12.9]} 34... Nd5 {[%clk
0:01:12.9]} 35. Rb1 {[%clk 0:00:10.5]} 35... Bd8 {[%clk 0:01:09.3]} 36. Nc4
{[%clk 0:00:08.8]} 36... Bxb6+ {[%clk 0:01:08.1]} 37. Nxb6 {[%clk 0:00:09.7]}
37... Qxe5 {[%clk 0:01:07.2]} 38. Nxd5 {[%clk 0:00:07.9]} 38... Qg3+ {[%clk
0:01:06.4]} 39. Kf1 {[%clk 0:00:06.1]} 39... Qxf3+ {[%clk 0:01:06.6]} 40. Kg1
{[%clk 0:00:06.2]} 40... Qg3+ {[%clk 0:01:06.2]} 41. Kf1 {[%clk 0:00:06.2]}
41... Qxh3+ {[%clk 0:01:03.8]} 42. Ke2 {[%clk 0:00:05.5]} 42... Qg2+ {[%clk
0:01:01.4]} 43. Kd3 {[%clk 0:00:05]} 43... Qxd5+ {[%clk 0:01:01.1]} 44. Qxd5
{[%clk 0:00:04.5]} 44... exd5 {[%clk 0:01:02]} 45. Kd4 {[%clk 0:00:05.4]} 45...
Rd8 {[%clk 0:01:01.4]} 46. Rb7 {[%clk 0:00:05.1]} 46... h5 {[%clk 0:00:59.8]}
47. Rb2 {[%clk 0:00:04.1]} 47... g6 {[%clk 0:00:59.6]} 48. Rh2 {[%clk 0:00:05]}
48... Kg7 {[%clk 0:00:59.4]} 49. Rh3 {[%clk 0:00:05.3]} 49... Kh6 {[%clk
0:00:57.9]} 50. Rh1 {[%clk 0:00:06.2]} 0-1

[Event "*** Titled Tuesday Blitz"]
[Site "Chess.com"]
[Date "2020.11.03"]
[Round "3"]
[White "Sokoloco"]
[Black "Deepweb2020"]
[Result "1-0"]
[WhiteElo "2452"]
[BlackElo "2242"]
[TimeControl "180+1"]
[EndTime "10:30:34 PST"]
[Termination "Sokoloco won on time"]

1. b3 {[%clk 0:03:00.9]} 1... e5 {[%clk 0:02:58.2]} 2. Bb2 {[%clk 0:02:56.8]}
2... Nc6 {[%clk 0:02:57.3]} 3. e3 {[%clk 0:02:56.1]} 3... d5 {[%clk 0:02:54.2]}
4. Bb5 {[%clk 0:02:55.3]} 4... f6 {[%clk 0:02:45.9]} 5. Nf3 {[%clk 0:02:16.1]}
5... Bd6 {[%clk 0:02:39.2]} 6. O-O {[%clk 0:02:04.5]} 6... Ne7 {[%clk
0:02:36.5]} 7. c4 {[%clk 0:02:04.4]} 7... a6 {[%clk 0:02:13.6]} 8. Bxc6+ {[%clk
0:01:53.9]} 8... bxc6 {[%clk 0:02:12.7]} 9. d4 {[%clk 0:01:42.9]} 9... e4 {[%clk
0:01:37.6]} 10. Nfd2 {[%clk 0:01:42.3]} 10... Nf5 {[%clk 0:01:17]} 11. Ba3
{[%clk 0:01:32.8]} 11... O-O {[%clk 0:01:05.9]} 12. Bxd6 {[%clk 0:01:23.8]}
12... Qxd6 {[%clk 0:00:55.1]} 13. Nc3 {[%clk 0:01:23.5]} 13... Be6 {[%clk
0:00:47.4]} 14. Qe2 {[%clk 0:01:14.7]} 14... Qe7 {[%clk 0:00:40.3]} 15. f3
{[%clk 0:01:06.7]} 15... exf3 {[%clk 0:00:39.1]} 16. Rxf3 {[%clk 0:01:07.6]}
16... Nd6 {[%clk 0:00:36.4]} 17. c5 {[%clk 0:00:58.3]} 17... Nf7 {[%clk
0:00:29.9]} 18. Rf4 {[%clk 0:00:42.4]} 18... Rfe8 {[%clk 0:00:29]} 19. Re1
{[%clk 0:00:38.1]} 19... Bd7 {[%clk 0:00:23.3]} 20. e4 {[%clk 0:00:38.2]} 20...
dxe4 {[%clk 0:00:22.7]} 21. Ndxe4 {[%clk 0:00:39.1]} 21... Qf8 {[%clk
0:00:21.8]} 22. d5 {[%clk 0:00:33.9]} 22... f5 {[%clk 0:00:17.8]} 23. dxc6
{[%clk 0:00:29.3]} 23... Bxc6 {[%clk 0:00:13.8]} 24. Rxf5 {[%clk 0:00:27.9]}
24... Kh8 {[%clk 0:00:09.1]} 25. Ref1 {[%clk 0:00:24.4]} 25... Re7 {[%clk
0:00:09.1]} 26. Qf3 {[%clk 0:00:20.7]} 26... Kg8 {[%clk 0:00:07.7]} 27. Qf4
{[%clk 0:00:16.5]} 27... Rae8 {[%clk 0:00:07]} 28. Ng5 {[%clk 0:00:16.8]} 28...
h6 {[%clk 0:00:01.6]} 29. Nxf7 {[%clk 0:00:16.2]} 1-0

[Event "*** Titled Tuesday Blitz"]
[Site "Chess.com"]
[Date "2020.11.03"]
[Round "3"]
[White "Airquake"]
[Black "pedroholly22"]
[Result "1-0"]
[WhiteElo "2607"]
[BlackElo "2383"]
[TimeControl "180+1"]
[EndTime "10:30:35 PST"]
[Termination "Airquake won by resignation"]

1. g3 {[%clk 0:02:57]} 1... Nf6 {[%clk 0:02:59]} 2. Bg2 {[%clk 0:02:57.9]} 2...
d5 {[%clk 0:02:59]} 3. Nf3 {[%clk 0:02:57]} 3... g6 {[%clk 0:02:58.7]} 4. O-O
{[%clk 0:02:57.7]} 4... Bg7 {[%clk 0:02:59.3]} 5. d3 {[%clk 0:02:58.6]} 5... O-O
{[%clk 0:02:59.4]} 6. Re1 {[%clk 0:02:59.1]} 6... b6 {[%clk 0:02:57.6]} 7. Nbd2
{[%clk 0:02:59.3]} 7... Bb7 {[%clk 0:02:57.4]} 8. c3 {[%clk 0:02:58.5]} 8... c5
{[%clk 0:02:55.3]} 9. Qc2 {[%clk 0:02:58.4]} 9... Na6 {[%clk 0:02:54.8]} 10. e4
{[%clk 0:02:58.8]} 10... dxe4 {[%clk 0:02:54.9]} 11. Nxe4 {[%clk 0:02:57.7]}
11... Nxe4 {[%clk 0:02:54.1]} 12. dxe4 {[%clk 0:02:57.7]} 12... Nc7 {[%clk
0:02:54.7]} 13. Bf4 {[%clk 0:02:56.2]} 13... Ne6 {[%clk 0:02:54.5]} 14. Rad1
{[%clk 0:02:55.7]} 14... Qe8 {[%clk 0:02:53.1]} 15. Be5 {[%clk 0:02:56.1]} 15...
f6 {[%clk 0:02:51.5]} 16. Qb3 {[%clk 0:02:54.3]} 16... Qf7 {[%clk 0:02:42.1]}
17. Bh3 {[%clk 0:02:54.1]} 17... c4 {[%clk 0:02:02.8]} 18. Qxc4 {[%clk
0:02:51.6]} 18... Nc5 {[%clk 0:02:02.1]} 19. Qxf7+ {[%clk 0:02:45.2]} 19... Kxf7
{[%clk 0:01:59.4]} 20. Bd4 {[%clk 0:02:39.7]} 20... Nxe4 {[%clk 0:01:58]} 21.
Nd2 {[%clk 0:02:32]} 21... Nxd2 {[%clk 0:01:51.7]} 22. Be6+ {[%clk 0:02:31.4]}
22... Ke8 {[%clk 0:01:51.2]} 23. Rxd2 {[%clk 0:02:29.9]} 23... Rd8 {[%clk
0:01:50.6]} 24. Rde2 {[%clk 0:02:26.8]} 24... Rd6 {[%clk 0:01:10.1]} 25. f4
{[%clk 0:02:24]} 25... Kd8 {[%clk 0:01:08.7]} 26. Bb3 {[%clk 0:02:12.3]} 26...
Rd7 {[%clk 0:01:06.5]} 27. Ba4 {[%clk 0:02:00.1]} 27... Rc7 {[%clk 0:01:03.3]}
28. Bf2 {[%clk 0:01:34.4]} 28... e5 {[%clk 0:00:57.3]} 29. Be3 {[%clk
0:01:24.7]} 29... Kc8 {[%clk 0:00:51.3]} 30. Rf2 {[%clk 0:01:12]} 30... e4
{[%clk 0:00:45]} 31. f5 {[%clk 0:01:12.1]} 31... g5 {[%clk 0:00:44.4]} 32. h4
{[%clk 0:01:12.1]} 32... h6 {[%clk 0:00:44.1]} 33. hxg5 {[%clk 0:01:12.2]} 33...
fxg5 {[%clk 0:00:40.9]} 34. g4 {[%clk 0:01:12.6]} 34... Be5 {[%clk 0:00:40.4]}
35. Kg2 {[%clk 0:01:11]} 35... Bf4 {[%clk 0:00:30.2]} 36. Bb3 {[%clk 0:01:01.1]}
36... Bxe3 {[%clk 0:00:19.6]} 37. Be6+ {[%clk 0:00:56.6]} 37... Kd8 {[%clk
0:00:17.8]} 38. Rxe3 {[%clk 0:00:57.5]} 38... Rf6 {[%clk 0:00:17.8]} 39. Kg3
{[%clk 0:00:54.7]} 39... Ke7 {[%clk 0:00:18]} 40. Rd2 {[%clk 0:00:53.7]} 40...
Bc6 {[%clk 0:00:15.8]} 41. Re1 {[%clk 0:00:53]} 41... a5 {[%clk 0:00:14.2]} 42.
Red1 {[%clk 0:00:51.7]} 42... Rf8 {[%clk 0:00:14.2]} 43. Rh2 {[%clk 0:00:50.9]}
43... Rf6 {[%clk 0:00:13.6]} 44. Kf2 {[%clk 0:00:51.5]} 44... Bd7 {[%clk
0:00:05.9]} 45. Bxd7 {[%clk 0:00:50.9]} 45... Rxd7 {[%clk 0:00:06.8]} 46. Rxd7+
{[%clk 0:00:51.2]} 46... Kxd7 {[%clk 0:00:07.7]} 47. Ke3 {[%clk 0:00:51.9]}
47... Kc6 {[%clk 0:00:05.9]} 48. Kxe4 {[%clk 0:00:52.2]} 48... Kd6 {[%clk
0:00:06.5]} 49. Rd2+ {[%clk 0:00:51.6]} 49... Kc6 {[%clk 0:00:06.9]} 50. Ke5
{[%clk 0:00:52.5]} 50... Rf8 {[%clk 0:00:07.2]} 51. f6 {[%clk 0:00:53.1]} 1-0

[Event "*** Titled Tuesday Blitz"]
[Site "Chess.com"]
[Date "2020.11.03"]
[Round "3"]
[White "anpospan"]
[Black "GjakanTati"]
[Result "0-1"]
[WhiteElo "2393"]
[BlackElo "2617"]
[TimeControl "180+1"]
[EndTime "10:30:36 PST"]
[Termination "GjakanTati won on time"]

1. Nf3 {[%clk 0:03:00.9]} 1... Nf6 {[%clk 0:02:59.5]} 2. g3 {[%clk 0:03:00.2]}
2... d5 {[%clk 0:02:58.7]} 3. Bg2 {[%clk 0:02:49.2]} 3... g6 {[%clk 0:02:57.9]}
4. O-O {[%clk 0:02:47.9]} 4... Bg7 {[%clk 0:02:58.2]} 5. d4 {[%clk 0:02:48.2]}
5... O-O {[%clk 0:02:58.7]} 6. Bf4 {[%clk 0:02:46.4]} 6... Nbd7 {[%clk
0:02:55.8]} 7. Ne5 {[%clk 0:02:44]} 7... c5 {[%clk 0:02:50.5]} 8. c3 {[%clk
0:02:41.1]} 8... Qb6 {[%clk 0:02:45.7]} 9. Qb3 {[%clk 0:02:36.7]} 9... e6 {[%clk
0:02:37]} 10. Nxd7 {[%clk 0:02:27.8]} 10... Bxd7 {[%clk 0:02:34.2]} 11. Qxb6
{[%clk 0:02:20.3]} 11... axb6 {[%clk 0:02:33.8]} 12. Be5 {[%clk 0:02:01.5]}
12... Bb5 {[%clk 0:02:28.1]} 13. Re1 {[%clk 0:01:55.2]} 13... Bc4 {[%clk
0:02:19.8]} 14. a3 {[%clk 0:01:51.2]} 14... Nd7 {[%clk 0:02:14.4]} 15. Bxg7
{[%clk 0:01:49.8]} 15... Kxg7 {[%clk 0:02:15.3]} 16. Nd2 {[%clk 0:01:49.8]}
16... cxd4 {[%clk 0:02:07.5]} 17. Nxc4 {[%clk 0:01:38.9]} 17... dxc4 {[%clk
0:02:04.1]} 18. cxd4 {[%clk 0:01:38.5]} 18... Ra7 {[%clk 0:02:01]} 19. Rac1
{[%clk 0:01:33.4]} 19... b5 {[%clk 0:01:49.7]} 20. e4 {[%clk 0:01:33.3]} 20...
Rc8 {[%clk 0:01:38.4]} 21. f4 {[%clk 0:01:32.7]} 21... Ra6 {[%clk 0:01:31.1]}
22. g4 {[%clk 0:01:29.6]} 22... Rb6 {[%clk 0:01:30.7]} 23. Re2 {[%clk
0:01:14.5]} 23... b4 {[%clk 0:01:30]} 24. Rec2 {[%clk 0:01:11.4]} 24... c3
{[%clk 0:01:19.6]} 25. bxc3 {[%clk 0:01:06.4]} 25... bxa3 {[%clk 0:01:19.1]} 26.
e5 {[%clk 0:00:58.5]} 26... Rb3 {[%clk 0:01:06.6]} 27. Kf2 {[%clk 0:00:54.7]}
27... b5 {[%clk 0:01:04.6]} 28. Ke2 {[%clk 0:00:51.7]} 28... Nb6 {[%clk
0:01:02.6]} 29. f5 {[%clk 0:00:42.5]} 29... gxf5 {[%clk 0:01:00.5]} 30. gxf5
{[%clk 0:00:42.3]} 30... Na4 {[%clk 0:00:59.9]} 31. Kd2 {[%clk 0:00:37]} 31...
Rb2 {[%clk 0:00:44.6]} 32. f6+ {[%clk 0:00:36.1]} 32... Kh6 {[%clk 0:00:41.9]}
33. Be4 {[%clk 0:00:31.2]} 33... Rxc3 {[%clk 0:00:35.1]} 34. Rxb2 {[%clk
0:00:20.6]} 34... Rxc1 {[%clk 0:00:34.4]} 35. Kxc1 {[%clk 0:00:06.8]} 35... Nxb2
{[%clk 0:00:34.2]} 36. d5 {[%clk 0:00:04.7]} 36... Nc4 {[%clk 0:00:29.5]} 37. d6
{[%clk 0:00:03.5]} 37... a2 {[%clk 0:00:28.2]} 0-1